bitfinex-derivatives/quotes_BTCF0:USTF0_20250720
["timestamp","ask_amount","ask_price","bid_price","bid_amount"]
[1753005180434,1.9397572,118130.0,118120.0,0.65084667]
[1753005180728,1.9397572,118130.0,118120.0,1.05283667]
[1753005181929,1.9397572,118130.0,118120.0,0.65084667]
[1753005182432,1.9395572,118130.0,118120.0,0.58989781]
[1753005182632,1.9395572,118130.0,118120.0,0.42066641]
[1753005183234,1.9395572,118130.0,118120.0,0.48163026]
[1753005185627,1.9395572,118130.0,118120.0,0.22668086]
[1753005185829,1.9395572,118130.0,118120.0,0.44239026]
[1753005186536,2.0670319,118130.0,118120.0,0.44239026]
[1753005186737,2.0670319,118130.0,118120.0,0.61162166]
[1753005187037,1.9390772,118130.0,118120.0,0.61162166]
[1753005187436,1.9390772,118130.0,118120.0,0.65086166]
[1753005188438,1.9390772,118130.0,118120.0,0.61162166]
[1753005195238,1.3500772,118130.0,118120.0,0.61162166]
[1753005195545,1.9385972,118130.0,118120.0,0.61162166]
[1753005196039,1.9385572,118130.0,118120.0,0.61188781]
[1753005196436,1.9385572,118130.0,118120.0,0.67285166]
[1753005196643,0.9892772,118130.0,118120.0,0.67285166]
[1753005197139,0.9892772,118130.0,118120.0,1.03285166]
[1753005197444,0.9892772,118130.0,118120.0,0.67285166]
[1753005197644,0.9892772,118130.0,118120.0,0.94188781]
[1753005197844,0.9892772,118130.0,118120.0,0.68693841]
[1753005198047,0.9892772,118130.0,118120.0,0.94188781]
[1753005198246,0.9892772,118130.0,118120.0,0.61188781]
[1753005198551,0.9892772,118130.0,118120.0,0.67283645]
[1753005199650,0.9892772,118130.0,118120.0,1.00283645]
[1753005199847,0.9892772,118130.0,118120.0,0.67283645]
[1753005200746,0.9892772,118130.0,118120.0,0.65084645]
[1753005201141,0.9892772,118130.0,118120.0,1.04283645]
[1753005201345,0.9892772,118130.0,118120.0,0.67283645]
[1753005201747,0.6284772,118130.0,118120.0,0.67283645]
[1753005202548,0.9892772,118130.0,118120.0,0.67283645]
[1753005202748,0.9892772,118130.0,118120.0,0.65084645]
[1753005203146,0.9892772,118130.0,118120.0,0.58989781]
[1753005203749,0.9892772,118130.0,118120.0,0.55065781]
[1753005205047,0.9892772,118130.0,118120.0,0.31322641]
[1753005205249,1.1167519,118130.0,118120.0,0.31322641]
[1753005205947,1.1167519,118130.0,118120.0,0.04143254]
[1753005206148,0.4078148,118110.0,118100.0,0.82604585]
[1753005206350,0.9570848,118110.0,118100.0,1.39099525]
[1753005206549,0.9570848,118110.0,118100.0,1.25717338]
[1753005207251,0.9580848,118110.0,118100.0,1.25717338]
[1753005207453,0.9580848,118110.0,118100.0,1.29231703]
[1753005207647,0.9580848,118110.0,118100.0,0.73518703]
[1753005207848,0.9580848,118110.0,118100.0,1.2825089]
[1753005209348,0.9580848,118110.0,118100.0,1.3217489]
[1753005212855,0.9580848,118110.0,118100.0,1.0275595]
[1753005213060,0.9580848,118110.0,118100.0,1.2825089]
[1753005213859,0.9580848,118110.0,118100.0,1.2824289]
[1753005214059,0.9580848,118110.0,118100.0,1.34336251]
[1753005215257,0.9580848,118110.0,118100.0,1.38260251]
[1753005217856,0.9580848,118110.0,118100.0,1.3216689]
[1753005218164,0.9580848,118110.0,118100.0,1.39784703]
[1753005221766,0.9580848,118110.0,118100.0,1.27037233]
[1753005221973,0.9580848,118110.0,118100.0,1.39784703]
[1753005223878,0.9580848,118110.0,118100.0,1.3216689]
[1753005227678,0.9580848,118110.0,118100.0,1.39784703]
[1753005229981,0.5972848,118110.0,118100.0,1.39784703]
[1753005230184,0.9580848,118110.0,118100.0,1.39784703]
[1753005235683,0.9580848,118110.0,118100.0,1.3216689]
[1753005237485,1.0855595,118110.0,118100.0,1.3216689]
[1753005239187,1.0855595,118110.0,118100.0,0.7334289]
[1753005239381,1.0855595,118110.0,118100.0,1.2809889]
[1753005239586,1.0855595,118110.0,118100.0,0.5667142]
[1753005239784,1.0855595,118110.0,118100.0,1.22974385]
[1753005240289,1.0855595,118110.0,118100.0,0.86748825]
[1753005240486,1.0855595,118110.0,118100.0,0.99496295]
[1753005240687,1.0855595,118110.0,118100.0,0.28068825]
[1753005240881,1.0855595,118110.0,118100.0,0.76748825]
[1753005241081,1.0855595,118110.0,118100.0,0.6981733]
[1753005241282,1.0855595,118110.0,118100.0,0.1113733]
[1753005243990,1.0855595,118110.0,118100.0,0.03514365]
[1753005244193,0.9580848,118110.0,118100.0,0.2967351]
[1753005244394,1.0855595,118110.0,118100.0,0.2967351]
[1753005244794,1.0855595,118110.0,118100.0,0.1274747]
[1753005245994,1.0855595,118110.0,118100.0,0.18842839]
[1753005246892,0.9580848,118110.0,118100.0,0.39396722]
[1753005247092,1.0855595,118110.0,118100.0,0.39396722]
[1753005247286,1.0855595,118110.0,118100.0,0.26649252]
[1753005247491,1.0855595,118110.0,118100.0,0.39396722]
[1753005247795,1.0855595,118110.0,118100.0,0.03627833]
[1753005247995,1.0855595,118110.0,118100.0,0.2967352]
[1753005248295,1.10296975,118110.0,118100.0,0.2967352]
[1753005249196,1.0855595,118110.0,118100.0,0.1274747]
[1753005249490,0.2937905,118100.0,118090.0,1.01321073]
[1753005249689,0.9494605,118100.0,118090.0,1.57147834]
[1753005250197,0.9494605,118100.0,118090.0,1.35936704]
[1753005250395,0.9494605,118100.0,118090.0,1.44452524]
[1753005251395,0.9494605,118100.0,118090.0,1.44552524]
[1753005251797,0.9494605,118100.0,118090.0,1.44652524]
[1753005251993,0.9504605,118100.0,118090.0,1.44552524]
[1753005252497,0.9504605,118100.0,118090.0,1.44452524]
[1753005252699,0.9514605,118100.0,118090.0,1.44452524]
[1753005253391,0.97064728,118100.0,118090.0,0.86542784]
[1753005253586,0.97064728,118100.0,118090.0,1.16217734]
[1753005253790,0.97064728,118100.0,118090.0,1.12293734]
[1753005254001,0.97064728,118100.0,118090.0,0.82618784]
[1753005254299,0.97064728,118100.0,118090.0,1.12293734]
[1753005254597,0.97064728,118100.0,118090.0,1.10122365]
[1753005257398,0.97064728,118100.0,118090.0,0.97374895]
[1753005257604,0.97064728,118100.0,118090.0,1.10122365]
[1753005259605,0.97064728,118100.0,118090.0,0.97374895]
[1753005259801,0.97064728,118100.0,118090.0,1.03470264]
[1753005260006,0.97064728,118100.0,118090.0,1.16217734]
[1753005260507,0.97064728,118100.0,118090.0,1.10122365]
[1753005261204,0.97064728,118100.0,118090.0,0.97374895]
[1753005261406,0.97064728,118100.0,118090.0,1.10122365]
[1753005264308,0.97064728,118100.0,118090.0,1.1774533]
[1753005265511,0.97064728,118100.0,118090.0,0.5906533]
[1753005265810,0.97064728,118100.0,118090.0,1.0499386]
[1753005266110,0.97064728,118100.0,118090.0,1.1774133]
[1753005267408,0.97064728,118100.0,118090.0,1.10118365]
[1753005268311,0.97064728,118100.0,118090.0,1.1621277]
[1753005269611,0.97064728,118100.0,118090.0,1.4821277]
[1753005274713,1.09812198,118100.0,118090.0,1.1228476]
[1753005274906,1.09812198,118100.0,118090.0,1.06190355]
[1753005275911,0.97064728,118100.0,118090.0,1.06190355]
[1753005276112,1.09812198,118100.0,118090.0,1.06190355]
[1753005276614,1.09812198,118100.0,118090.0,0.40754355]
[1753005276813,1.09812198,118100.0,118090.0,0.99426355]
[1753005277614,0.97064728,118100.0,118090.0,0.99426355]
[1753005277814,1.09812198,118100.0,118090.0,0.99426355]
[1753005279716,0.73732198,118100.0,118090.0,0.99426355]
[1753005279916,1.09812198,118100.0,118090.0,0.99426355]
[1753005280112,0.97064728,118100.0,118090.0,0.99426355]
[1753005281518,0.97064728,118100.0,118090.0,1.0704932]
[1753005282718,0.60984728,118100.0,118090.0,1.0704932]
[1753005282919,0.97064728,118100.0,118090.0,1.0704932]
[1753005283418,0.60984728,118100.0,118090.0,1.0704932]
[1753005283719,0.97064728,118100.0,118090.0,1.0704932]
[1753005285728,0.97064728,118100.0,118090.0,1.00331599]
[1753005286528,0.97064728,118100.0,118090.0,0.94278129]
[1753005286727,0.97064728,118100.0,118090.0,1.07025599]
[1753005287730,0.97064728,118100.0,118090.0,0.94278129]
[1753005287925,0.97064728,118100.0,118090.0,1.07025599]
[1753005288929,0.97064728,118100.0,118090.0,0.94278129]
[1753005289126,0.97064728,118100.0,118090.0,1.07025599]
[1753005289629,0.97064728,118100.0,118090.0,0.94278129]
[1753005289824,0.97064728,118100.0,118090.0,1.07025599]
[1753005290733,0.97064728,118100.0,118090.0,0.94278129]
[1753005291028,0.97064728,118100.0,118090.0,1.07025599]
[1753005295430,0.60984728,118100.0,118090.0,1.07025599]
[1753005295632,0.97064728,118100.0,118090.0,1.07025599]
[1753005298034,0.97064728,118100.0,118090.0,1.19773069]
[1753005298229,0.97064728,118100.0,118090.0,0.98202129]
[1753005298434,0.97064728,118100.0,118090.0,1.10949599]
[1753005300235,0.97064728,118100.0,118090.0,1.03326634]
[1753005301433,0.97064728,118100.0,118090.0,0.99402634]
[1753005305334,0.97064728,118100.0,118090.0,1.07025599]
[1753005306532,0.97064728,118100.0,118090.0,0.94278129]
[1753005306736,0.97064728,118100.0,118090.0,1.07025599]
[1753005307433,0.97064728,118100.0,118090.0,1.10949599]
[1753005312437,0.97064728,118100.0,118090.0,1.03326634]
[1753005313443,0.97064728,118100.0,118090.0,1.09425302]
[1753005313638,0.97064728,118100.0,118090.0,1.22172772]
[1753005314140,0.9514605,118100.0,118090.0,1.53172772]
[1753005314445,0.3087,118100.0,118090.0,1.56929772]
[1753005314634,0.29687,118100.0,118090.0,1.31434832]
[1753005314839,0.29687,118100.0,118090.0,1.56929772]
[1753005315436,0.29687,118100.0,118090.0,1.50831104]
[1753005316648,0.22474,118100.0,118090.0,1.50831104]
[1753005316846,0.22474,118100.0,118090.0,1.63578574]
[1753005317240,0.22474,118100.0,118090.0,1.50831104]
[1753005317641,0.112,118100.0,118090.0,1.63578574]
[1753005317845,0.112,118100.0,118090.0,1.50831104]
[1753005318351,0.09784,118100.0,118090.0,1.50831104]
[1753005318952,0.09784,118100.0,118090.0,1.63578574]
[1753005319549,0.09784,118100.0,118090.0,1.50831104]
[1753005320243,0.09784,118100.0,118090.0,1.87620613]
[1753005328447,0.09784,118100.0,118090.0,1.80001104]
[1753005328650,0.09784,118100.0,118090.0,1.90654585]
[1753005334860,0.21731,118100.0,118090.0,1.90654585]
[1753005335365,0.21731,118100.0,118090.0,1.65131645]
[1753005335564,0.28697,118100.0,118090.0,1.31982585]
[1753005335755,0.28697,118100.0,118090.0,1.61452585]
[1753005339252,0.28697,118100.0,118090.0,1.35957645]
[1753005339456,0.40517,118100.0,118090.0,1.61452585]
[1753005340364,0.40517,118100.0,118090.0,1.35957645]
[1753005340664,0.40517,118100.0,118090.0,1.61452585]
[1753005345672,0.40517,118100.0,118090.0,1.50799104]
[1753005347876,0.40517,118100.0,118090.0,1.61463842]
[1753005357790,0.29082807,118100.0,118090.0,1.61463842]
[1753005357991,0.35082807,118100.0,118090.0,1.50799104]
[1753005359985,0.35082807,118100.0,118090.0,1.25304164]
[1753005360187,0.35082807,118100.0,118090.0,1.50799104]
[1753005361194,0.35082807,118100.0,118090.0,1.25304164]
[1753005361393,0.35082807,118100.0,118090.0,1.50799104]
[1753005361789,0.35082807,118100.0,118090.0,1.58421096]
[1753005369799,0.35082807,118100.0,118090.0,1.50799104]
[1753005378205,0.35082807,118100.0,118090.0,1.61470546]
[1753005379700,0.35082807,118100.0,118090.0,1.50799104]
[1753005379905,0.35082807,118100.0,118090.0,1.61470512]
[1753005381305,0.35082807,118100.0,118090.0,1.69092918]
[1753005381505,0.35082807,118100.0,118090.0,1.5842151]
[1753005383908,0.35082807,118100.0,118090.0,1.3292657]
[1753005384107,0.35082807,118100.0,118090.0,1.5842151]
[1753005384708,0.35082807,118100.0,118090.0,1.50799104]
[1753005386107,0.35082807,118100.0,118090.0,1.25304164]
[1753005386409,0.35082807,118100.0,118090.0,1.50799104]
[1753005387804,0.35082807,118100.0,118090.0,1.61470446]
[1753005388006,0.35082807,118100.0,118090.0,1.35975506]
[1753005388215,0.35082807,118100.0,118090.0,1.61470446]
[1753005388508,0.35082807,118100.0,118090.0,1.02830446]
[1753005388714,0.88088857,118100.0,118090.0,1.32494634]
[1753005389815,0.88088857,118100.0,118090.0,1.19747164]
[1753005390009,0.88088857,118100.0,118090.0,1.32494634]
[1753005390210,0.88088857,118100.0,118090.0,1.40116063]
[1753005392112,0.88088857,118100.0,118090.0,1.32494634]
[1753005393118,0.88088857,118100.0,118090.0,1.19747164]
[1753005393320,0.88088857,118100.0,118090.0,1.32494634]
[1753005394120,0.88088857,118100.0,118090.0,1.38588182]
[1753005395619,0.71162807,118100.0,118090.0,1.38588182]
[1753005397128,0.71162807,118100.0,118090.0,1.32494634]
[1753005397825,0.71162807,118100.0,118090.0,1.40116063]
[1753005398625,0.71162807,118100.0,118090.0,1.44040063]
[1753005400628,0.71162807,118100.0,118090.0,1.31292593]
[1753005400830,0.88088747,118100.0,118090.0,1.44040063]
[1753005402327,0.88088747,118100.0,118090.0,1.31292593]
[1753005402527,0.88088747,118100.0,118090.0,1.44040063]
[1753005405330,0.88088747,118100.0,118090.0,1.52194063]
[1753005409428,0.88088747,118100.0,118090.0,1.64941533]
[1753005411033,0.88088747,118100.0,118090.0,1.52194063]
[1753005411932,0.52008747,118100.0,118090.0,1.52194063]
[1753005412233,0.88088747,118100.0,118090.0,1.52194063]
[1753005414833,0.88088747,118100.0,118090.0,1.44572634]
[1753005415336,0.88088747,118100.0,118090.0,1.52194063]
[1753005416839,0.88088747,118100.0,118090.0,1.64941533]
[1753005420145,0.88088747,118100.0,118090.0,1.39446593]
[1753005420340,0.88088747,118100.0,118090.0,1.64941533]
[1753005421746,0.52008747,118100.0,118090.0,1.64941533]
[1753005422045,0.88088747,118100.0,118090.0,1.64941533]
[1753005427849,0.88088747,118100.0,118090.0,1.44572634]
[1753005428949,0.88088747,118100.0,118090.0,1.55243976]
[1753005429448,0.88088747,118100.0,118090.0,1.52195751]
[1753005429842,0.88088747,118100.0,118090.0,1.44572634]
[1753005431950,0.52008747,118100.0,118090.0,1.44572634]
[1753005432150,0.88088747,118100.0,118090.0,1.44572634]
[1753005435348,0.71162807,118100.0,118090.0,1.44572634]
[1753005435555,0.88088767,118100.0,118090.0,1.44572634]
[1753005436055,0.88088767,118100.0,118090.0,0.85808634]
[1753005436255,0.88088767,118100.0,118090.0,1.44488634]
[1753005437355,0.71162807,118100.0,118090.0,1.44488634]
[1753005437746,0.88088767,118100.0,118090.0,1.44488634]
[1753005437949,0.88088767,118100.0,118090.0,1.50587116]
[1753005439257,0.88088767,118100.0,118090.0,1.44488634]
[1753005439556,0.88088767,118100.0,118090.0,1.52111751]
[1753005441860,0.88088767,118100.0,118090.0,1.44488634]
[1753005443853,0.71162807,118100.0,118090.0,1.50586992]
[1753005445060,0.88088767,118100.0,118090.0,1.50586992]
[1753005445659,0.88088767,118100.0,118090.0,1.37839522]
[1753005445854,0.71162807,118100.0,118090.0,1.37839522]
[1753005446056,0.35082807,118100.0,118090.0,1.37839522]
[1753005446263,0.71162807,118100.0,118090.0,1.37839522]
[1753005446553,0.35082807,118100.0,118090.0,1.37839522]
[1753005446763,0.71162807,118100.0,118090.0,1.37839522]
[1753005447562,0.88088767,118100.0,118090.0,1.37839522]
[1753005447866,0.88088767,118100.0,118090.0,1.31741164]
[1753005449365,0.52008767,118100.0,118090.0,1.31741164]
[1753005449562,0.88088767,118100.0,118090.0,1.31741164]
[1753005451860,0.88088767,118100.0,118090.0,1.42412506]
[1753005452364,0.52008767,118100.0,118090.0,1.42412506]
[1753005452557,0.88088767,118100.0,118090.0,1.42412506]
[1753005452864,0.71162807,118100.0,118090.0,1.42412506]
[1753005453062,0.35082807,118100.0,118090.0,1.42412506]
[1753005455666,0.52008767,118100.0,118090.0,1.42412506]
[1753005456064,0.71162807,118100.0,118090.0,1.42412506]
[1753005457571,0.88088767,118100.0,118090.0,1.42412506]
[1753005458368,0.71162807,118100.0,118090.0,1.42412506]
[1753005459771,0.35082807,118100.0,118090.0,1.42412506]
[1753005459969,0.71162807,118100.0,118090.0,1.42412506]
[1753005462271,0.35082807,118100.0,118090.0,1.42412506]
[1753005462470,0.71162807,118100.0,118090.0,1.42412506]
[1753005463370,0.71162807,118100.0,118090.0,1.39363678]
[1753005465872,0.59342807,118100.0,118090.0,1.39363678]
[1753005466175,0.59342807,118100.0,118090.0,1.31741164]
[1753005466970,0.23262807,118100.0,118090.0,1.31741164]
[1753005467171,0.59342807,118100.0,118090.0,1.31741164]
[1753005474474,0.23262807,118100.0,118090.0,1.31741164]
[1753005475075,0.23262807,118100.0,118090.0,1.39363678]
[1753005476471,0.26453807,118100.0,118090.0,1.39363678]
[1753005477873,0.26453807,118100.0,118090.0,1.31741164]
[1753005478374,0.27579807,118100.0,118090.0,1.31741164]
[1753005478573,0.34733807,118100.0,118090.0,1.31741164]
[1753005482677,0.70813807,118100.0,118090.0,1.31741164]
[1753005484387,0.34733807,118100.0,118090.0,1.31741164]
[1753005484579,0.34733807,118100.0,118090.0,1.3783843]
[1753005485878,0.34733807,118100.0,118090.0,1.31741164]
[1753005486879,0.70813807,118100.0,118090.0,1.37838644]
[1753005487079,0.70813807,118100.0,118090.0,1.31741164]
[1753005487976,0.34733807,118100.0,118090.0,1.39362747]
[1753005490479,0.70813807,118100.0,118090.0,1.39362747]
[1753005490979,0.87739777,118100.0,118090.0,1.39362747]
[1753005491183,0.87739777,118100.0,118090.0,1.31741164]
[1753005493185,0.87739777,118100.0,118090.0,0.73061164]
[1753005493380,0.87739777,118100.0,118090.0,1.31677164]
[1753005493984,0.87739777,118100.0,118090.0,1.39299429]
[1753005495182,0.87739777,118100.0,118090.0,0.68605429]
[1753005495487,0.87739777,118100.0,118090.0,1.27221429]
[1753005496088,0.87739777,118100.0,118090.0,1.19599164]
[1753005496790,0.87739777,118100.0,118090.0,1.2722163]
[1753005497976,0.87739777,118100.0,118090.0,1.0822163]
[1753005505892,0.87739777,118100.0,118090.0,0.4960563]
[1753005506196,0.87739777,118100.0,118090.0,1.0820563]
[1753005513102,0.87739777,118100.0,118090.0,0.9127816]
[1753005513604,0.87739777,118100.0,118090.0,1.0820557]
[1753005513904,0.87739777,118100.0,118090.0,0.9127816]
[1753005514298,0.87739777,118100.0,118090.0,1.0820557]
[1753005514704,0.87739777,118100.0,118090.0,0.9127816]
[1753005514905,0.87739777,118100.0,118090.0,1.0820557]
[1753005516304,0.87739777,118100.0,118090.0,0.9127816]
[1753005516705,0.87739777,118100.0,118090.0,1.0820557]
[1753005516906,0.87739777,118100.0,118090.0,0.9127816]
[1753005517206,0.87739777,118100.0,118090.0,1.0820557]
[1753005518507,0.87739777,118100.0,118090.0,0.9127816]
[1753005518701,0.87739777,118100.0,118090.0,1.0820554]
[1753005526610,0.87739777,118100.0,118090.0,0.9127816]
[1753005528011,0.87739777,118100.0,118090.0,0.83655694]
[1753005528613,0.87739777,118100.0,118090.0,1.02282231]
[1753005530514,0.87739777,118100.0,118090.0,1.08379934]
[1753005530811,0.87739777,118100.0,118090.0,1.12303934]
[1753005536117,0.87739777,118100.0,118090.0,1.18496934]
[1753005538022,0.87739777,118100.0,118090.0,1.12399231]
[1753005538814,0.87739777,118100.0,118090.0,1.06206231]
[1753005540717,0.87739777,118100.0,118090.0,1.02282231]
[1753005542820,0.87739777,118100.0,118090.0,1.06206231]
[1753005543015,0.87739777,118100.0,118090.0,1.13828697]
[1753005551431,0.87739777,118100.0,118090.0,1.13780697]
[1753005552427,0.51659777,118100.0,118090.0,1.13780697]
[1753005552628,0.87739777,118100.0,118090.0,1.13780697]
[1753005559035,0.87739777,118100.0,118090.0,1.1208157]
[1753005560535,0.87739777,118100.0,118090.0,1.10557683]
[1753005561435,1.46279777,118100.0,118090.0,0.04361694]
[1753005561825,1.46279777,118100.0,118090.0,0.1198416]
[1753005562428,1.46279777,118100.0,118090.0,0.04361694]
[1753005562841,1.46479777,118100.0,118090.0,0.04361694]
[1753005563340,1.46579777,118100.0,118090.0,0.04361694]
[1753005564938,1.46579777,118100.0,118090.0,0.10458885]
[1753005565330,1.46579777,118100.0,118090.0,0.04361694]
[1753005565734,1.46579777,118100.0,118090.0,0.10458213]
[1753005566131,1.46579777,118100.0,118090.0,0.04361694]
[1753005566336,1.46579777,118100.0,118090.0,0.10457759]
[1753005567143,0.4252744,118090.0,118080.0,0.24551336]
[1753005567443,1.25710084,118090.0,118080.0,0.24551336]
[1753005568137,1.25710084,118090.0,118080.0,0.1692887]
[1753005568342,1.25710084,118090.0,118080.0,0.19119165]
[1753005568841,1.25710084,118090.0,118080.0,0.02190295]
[1753005569042,0.2774187,118080.0,118070.0,0.41989458]
[1753005569243,0.93901306,118080.0,118070.0,0.64913458]
[1753005570044,0.93901306,118080.0,118070.0,0.60680968]
[1753005570245,0.93901306,118080.0,118070.0,0.60780968]
[1753005570446,0.93901306,118080.0,118070.0,0.56548598]
[1753005570938,0.93901306,118080.0,118070.0,0.39619098]
[1753005571943,0.93901306,118080.0,118070.0,0.39719098]
[1753005572352,0.93901306,118080.0,118070.0,0.47341564]
[1753005572646,0.93901306,118080.0,118070.0,0.39719098]
[1753005572845,0.93901306,118080.0,118070.0,0.41928677]
[1753005574848,0.93901306,118080.0,118070.0,0.38004677]
[1753005575246,0.93901306,118080.0,118070.0,0.41928677]
[1753005575449,0.93901306,118080.0,118070.0,0.41828677]
[1753005576149,0.93901306,118080.0,118070.0,1.00256677]
[1753005577153,0.93901306,118080.0,118070.0,1.06346249]
[1753005577853,0.93901306,118080.0,118070.0,1.07879143]
[1753005578352,0.93901306,118080.0,118070.0,1.00256677]
[1753005578552,0.93901306,118080.0,118070.0,1.17186977]
[1753005579753,0.93901306,118080.0,118070.0,1.24809443]
[1753005580153,0.93901306,118080.0,118070.0,1.17178977]
[1753005582656,0.93901306,118080.0,118070.0,1.24801443]
[1753005583057,0.93901306,118080.0,118070.0,1.17178977]
[1753005583459,0.93901306,118080.0,118070.0,1.24801443]
[1753005584860,0.93901306,118080.0,118070.0,1.17178977]
[1753005585465,0.93901306,118080.0,118070.0,1.13254977]
[1753005585767,0.93901306,118080.0,118070.0,1.20877443]
[1753005588857,0.93901306,118080.0,118070.0,1.03947143]
[1753005589060,0.93901306,118080.0,118070.0,0.96324677]
[1753005589260,0.93901306,118080.0,118070.0,0.77324677]
[1753005590167,0.9200387,118080.0,118070.0,0.77324677]
[1753005590869,0.9200387,118080.0,118070.0,0.64030579]
[1753005591069,0.9200387,118080.0,118070.0,0.77743626]
[1753005591264,0.9200387,118080.0,118070.0,0.0830016]
[1753005591468,0.9200387,118080.0,118070.0,0.06090581]
[1753005591969,1.0894227,118080.0,118070.0,0.06090581]
[1753005592160,0.2774473,118060.0,118050.0,0.10923466]
[1753005592367,1.8559873,118060.0,118050.0,0.20187486]
[1753005592867,1.8559873,118060.0,118050.0,0.16886486]
[1753005593164,2.0254033,118060.0,118050.0,0.09271133]
[1753005593373,0.4492817,118050.0,118040.0,0.00206403]
[1753005593562,0.9200817,118050.0,118040.0,0.00206403]
[1753005594380,0.9200817,118050.0,118040.0,0.07820383]
[1753005594562,0.9200817,118050.0,118040.0,0.07920383]
[1753005594769,0.9200817,118050.0,118040.0,0.05420383]
[1753005594969,1.0895057,118050.0,118040.0,0.02920383]
[1753005595270,1.0895057,118050.0,118030.0,0.10670216]
[1753005595271,0.410769,118010.0,118000.0,1.0]
[1753005595473,1.1527944,118010.0,118000.0,1.2411234]
[1753005595768,1.3860145,118010.0,118000.0,1.3456734]
[1753005595974,0.8565454,118010.0,118000.0,1.6856734]
[1753005596175,0.1797154,118010.0,118000.0,2.0464734]
[1753005596364,0.12,118010.0,118000.0,2.6325534]
[1753005596563,0.12,118010.0,118000.0,2.2717534]
[1753005596769,0.2893891,118010.0,118000.0,2.2723534]
[1753005596964,0.2893891,118010.0,118000.0,1.6856734]
[1753005597169,0.2893891,118010.0,118000.0,2.2725134]
[1753005597572,0.3962091,118010.0,118000.0,2.29444903]
[1753005597773,0.3972091,118010.0,118000.0,2.29444903]
[1753005598076,0.3972091,118010.0,118000.0,2.29544903]
[1753005598276,0.8489991,118010.0,118000.0,2.12616563]
[1753005598478,0.8489991,118010.0,118000.0,1.80616563]
[1753005598666,0.8489991,118010.0,118000.0,1.21920563]
[1753005598871,0.8489991,118010.0,118000.0,1.80628563]
[1753005599479,0.8489991,118010.0,118000.0,2.11628563]
[1753005599773,0.8489991,118010.0,118000.0,1.20920563]
[1753005599974,0.8489991,118010.0,118000.0,1.79612563]
[1753005600174,0.8489991,118010.0,118000.0,1.20920563]
[1753005600369,0.8638291,118010.0,118000.0,1.10465563]
[1753005600569,1.4507091,118010.0,118000.0,1.10465563]
[1753005601273,1.4507091,118010.0,118000.0,1.10481042]
[1753005601474,1.4358791,118010.0,118000.0,1.20936042]
[1753005601677,1.4358391,118010.0,118000.0,1.37876342]
[1753005601878,1.0513086,118010.0,118000.0,1.43876342]
[1753005602078,0.4644686,118010.0,118000.0,1.72876342]
[1753005602281,0.4644686,118010.0,118000.0,1.36876342]
[1753005602578,0.4644686,118010.0,118000.0,1.25936042]
[1753005602775,0.4881986,118010.0,118000.0,1.25936042]
[1753005603376,0.4881986,118010.0,118000.0,1.42876322]
[1753005603777,0.4881986,118010.0,118000.0,1.72876322]
[1753005603972,0.4644686,118010.0,118000.0,1.72876322]
[1753005604472,0.22782,118010.0,118000.0,1.72876322]
[1753005604671,0.3972084,118010.0,118000.0,1.72876322]
[1753005605083,0.22782,118010.0,118000.0,1.72876322]
[1753005605283,0.22782,118010.0,118000.0,2.08956322]
[1753005605583,0.3972084,118010.0,118000.0,2.08956322]
[1753005606785,0.3972084,118010.0,118000.0,2.09956322]
[1753005607173,0.3972084,118010.0,118000.0,1.73876322]
[1753005607379,0.3972084,118010.0,118000.0,1.41876322]
[1753005607687,0.3972084,118010.0,118000.0,2.04956322]
[1753005609886,0.3972084,118010.0,118000.0,1.36876322]
[1753005610185,0.3972084,118010.0,118000.0,1.41876322]
[1753005610386,0.3972084,118010.0,118000.0,1.74876322]
[1753005611083,0.22782,118010.0,118000.0,1.74876322]
[1753005611785,0.22782,118010.0,118000.0,2.10956322]
[1753005618188,0.22782,118010.0,118000.0,1.74876322]
[1753005618586,0.3972084,118010.0,118000.0,1.74876322]
[1753005618790,0.22782,118010.0,118000.0,1.74876322]
[1753005620685,0.22782,118010.0,118000.0,2.10956322]
[1753005620893,0.22782,118010.0,118000.0,1.74876322]
[1753005623396,0.41784963,118010.0,118000.0,1.74876322]
[1753005625498,0.3972083,118010.0,118000.0,1.74876322]
[1753005626297,0.24806483,118010.0,118000.0,1.74876322]
[1753005626595,0.41745293,118010.0,118000.0,1.74876322]
[1753005626796,0.22782,118010.0,118000.0,1.74876322]
[1753005627196,0.24803697,118010.0,118000.0,1.74876322]
[1753005627896,0.22782,118010.0,118000.0,1.74876322]
[1753005628599,0.22782,118010.0,118000.0,2.10956322]
[1753005628787,0.22782,118010.0,118000.0,1.74876322]
[1753005630899,0.3972083,118010.0,118000.0,1.74876322]
[1753005631300,0.3972083,118010.0,118000.0,1.74676322]
[1753005632297,0.7580083,118010.0,118000.0,1.74676322]
[1753005632501,0.4677283,118010.0,118000.0,1.74676322]
[1753005633003,0.29834,118010.0,118000.0,1.74676322]
[1753005634202,0.29834,118010.0,118000.0,2.10756322]
[1753005634503,0.22782,118010.0,118000.0,2.10756322]
[1753005640004,0.22782,118010.0,118000.0,2.16855426]
[1753005641008,0.22782,118010.0,118000.0,1.80775426]
[1753005641206,0.3972083,118010.0,118000.0,1.80775426]
[1753005641709,0.4677283,118010.0,118000.0,1.80775426]
[1753005642207,0.8285283,118010.0,118000.0,1.80775426]
[1753005643810,0.4677283,118010.0,118000.0,1.80775426]
[1753005644011,0.8285283,118010.0,118000.0,1.80775426]
[1753005644206,0.8285283,118010.0,118000.0,1.74676322]
[1753005645210,0.65914,118010.0,118000.0,1.74676322]
[1753005646212,0.65914,118010.0,118000.0,1.82264857]
[1753005646511,0.29834,118010.0,118000.0,2.18344857]
[1753005646709,0.22782,118010.0,118000.0,2.18344857]
[1753005647511,0.22782,118010.0,118000.0,1.74676322]
[1753005651314,0.22782,118010.0,118000.0,1.82264857]
[1753005653816,0.22782,118010.0,118000.0,1.74676322]
[1753005657919,0.22782,118010.0,118000.0,1.8077873]
[1753005667924,0.121,118010.0,118000.0,1.82264857]
[1753005668121,0.121,118010.0,118000.0,2.18344857]
[1753005668325,0.16716,118030.0,118020.0,0.3521041]
[1753005668628,0.80268025,118040.0,118030.0,0.4504697]
[1753005668827,0.9777694,118040.0,118030.0,0.4604697]
[1753005669526,0.9354316,118040.0,118030.0,0.4504697]
[1753005669731,0.8930942,118040.0,118030.0,0.4704697]
[1753005669925,0.8930942,118040.0,118030.0,0.4604697]
[1753005671129,0.8970942,118040.0,118030.0,0.4604697]
[1753005671519,0.9010942,118040.0,118030.0,0.4604697]
[1753005671729,0.9010942,118040.0,118030.0,0.5304697]
[1753005672029,0.7317394,118040.0,118030.0,0.5304697]
[1753005672233,0.71264025,118040.0,118030.0,0.5404697]
[1753005672623,0.70864025,118040.0,118030.0,0.5404697]
[1753005672827,0.68691025,118040.0,118030.0,0.5304697]
[1753005673126,0.85625565,118040.0,118030.0,0.4504697]
[1753005673330,0.85625565,118040.0,118030.0,0.5504697]
[1753005673629,0.85625565,118040.0,118030.0,0.60148385]
[1753005674024,0.85625565,118040.0,118030.0,0.88148385]
[1753005674329,0.87998565,118040.0,118030.0,0.59148385]
[1753005674529,0.87898565,118040.0,118030.0,0.59148385]
[1753005674731,0.87898565,118040.0,118030.0,0.60148385]
[1753005674732,0.70964025,118040.0,118030.0,0.60148385]